lending/lending_fUSD_20240401
["ID","MTS","AMOUNT","RATE_DAILY","PERIOD"]
[321235606,1712007038534,-500.0,0.00060073,120]
[321235607,1712007038543,-500.0,0.00060073,120]
[321235608,1712007038552,-500.0,0.00060073,120]
[321235609,1712007038562,-500.0,0.00060073,120]
[321235610,1712007038570,-500.0,0.00060073,120]
[321235611,1712007038579,-500.0,0.00060073,120]
[321235612,1712007038588,-500.0,0.00060073,120]
[321235613,1712007038597,-500.0,0.00060073,120]
[321235614,1712007038606,-1320.38,0.00060073,120]
[321235615,1712007038616,-1355.63,0.00060073,120]
[321235616,1712007038625,-500.0,0.00060073,120]
[321235617,1712007038634,-500.0,0.00060073,120]
[321235618,1712007038643,-500.0,0.00060073,120]
[321235619,1712007038652,-500.0,0.00060073,120]
[321235620,1712007038661,-736.97,0.00060073,120]
[321235621,1712007038670,-1254.6,0.00060073,120]
[321235622,1712007038679,-1981.88,0.00060073,120]
[321235623,1712007038688,-500.0,0.00060073,120]
[321235624,1712007038697,-500.0,0.00060073,120]
[321235625,1712007038706,-500.0,0.00060073,120]
[321235626,1712007038715,-757.56,0.00060073,120]
[321235627,1712007038724,-500.0,0.00060073,120]
[321235628,1712007038734,-500.0,0.00060073,120]
[321235629,1712007038743,-611.37,0.00060073,120]
[321235630,1712007038752,-500.0,0.00060073,120]
[321235631,1712007038761,-500.0,0.00060073,120]
[321235632,1712007038770,-500.0,0.00060073,7]
[321235633,1712007038779,-500.0,0.00060073,120]
[321235634,1712007038788,-609.0,0.00060073,120]
[321235635,1712007038797,-500.0,0.00060073,120]
[321235636,1712007038806,-511.68,0.00060073,120]
[321235637,1712007038815,-500.0,0.00060073,120]
[321235638,1712007038824,-500.0,0.00060073,120]
[321235639,1712007038833,-500.0,0.00060073,120]
[321235640,1712007038842,-500.0,0.00060073,120]
[321235641,1712007038852,-162.10071881,0.00060095,120]
[321235642,1712007038861,-1000.0,0.000601,7]
[321235643,1712007038869,-153.64349601,0.00060117,120]
[321235644,1712007038878,-154.22586693,0.00060141,120]
[321235645,1712007038887,-150.38124941,0.00060156,120]
[321235646,1712007038896,-152.51,0.000602,10]
[321235647,1712007038905,-152.51,0.000602,10]
[321235648,1712007038915,-152.51,0.000602,10]
[321235649,1712007038923,-152.51,0.000602,10]
[321235650,1712007039065,-152.51,0.000602,10]
[321235651,1712007039074,-152.51,0.000602,10]
[321235652,1712007039083,-152.51,0.000602,10]
[321235653,1712007039097,-37164.23,0.00060274,30]
[321235654,1712007039106,-500.0,0.00060346,120]
[321235655,1712007039114,-680.46,0.00060346,120]
[321235656,1712007039123,-599.81,0.00060346,120]
[321235657,1712007039132,-519.19,0.00060346,120]
[321235658,1712007039141,-601.57,0.00060346,120]
[321235659,1712007039150,-513.33,0.00060346,120]
[321235660,1712007039159,-596.47,0.00060346,120]
[321235661,1712007039169,-500.0,0.00060346,120]
[321235662,1712007039177,-3391.36,0.00060346,120]
[321235663,1712007039186,-1369.95,0.00060346,120]
[321235664,1712007039195,-500.0,0.00060346,120]
[321235665,1712007039205,-687.98,0.00060346,120]
[321235666,1712007039214,-1071.64,0.00060346,120]
[321235667,1712007039223,-500.0,0.00060346,120]
[321235668,1712007039232,-1065.74,0.00060346,120]
[321235669,1712007039241,-500.0,0.00060346,120]
[321235670,1712007039250,-500.0,0.00060346,120]
[321235671,1712007039259,-1349.08,0.00060346,120]
[321235672,1712007039268,-500.0,0.00060346,120]
[321235673,1712007039276,-500.0,0.00060346,120]
[321235674,1712007039285,-748.08,0.00060346,120]
[321235675,1712007039294,-500.0,0.00060346,120]
[321235676,1712007039302,-711.74,0.00060346,120]
[321235677,1712007039311,-500.0,0.00060346,120]
[321235678,1712007039320,-500.0,0.00060346,120]
[321235679,1712007039330,-500.0,0.00060346,120]
[321235680,1712007039338,-500.0,0.00060346,120]
[321235681,1712007039347,-500.0,0.00060346,120]
[321235682,1712007039357,-500.0,0.00060346,120]
[321235683,1712007039365,-500.0,0.00060346,120]
[321235684,1712007039374,-500.0,0.00060346,120]
[321235685,1712007039383,-517.59,0.00060346,120]
[321235686,1712007039391,-500.0,0.00060346,120]
[321235687,1712007039400,-500.0,0.00060347,120]
[321235688,1712007039409,-363.72,0.00060347,120]
[321235689,1712007039418,-500.0,0.00060347,120]
[321235690,1712007039427,-500.0,0.00060347,120]
[321235691,1712007039435,-500.0,0.00060347,120]
[321235692,1712007039444,-500.0,0.00060347,120]
[321235693,1712007039453,-500.0,0.00060347,120]
[321235694,1712007039462,-500.0,0.00060347,120]
[321235695,1712007039471,-500.0,0.00060347,120]
[321235696,1712007039480,-500.0,0.00060347,120]
[321235697,1712007039489,-500.0,0.00060347,120]
[321235698,1712007039498,-500.0,0.00060347,120]
[321235699,1712007039507,-500.0,0.00060347,120]
[321235700,1712007039516,-500.0,0.00060347,120]
[321235701,1712007039525,-500.0,0.00060347,120]
[321235702,1712007039534,-500.0,0.00060347,120]
[321235703,1712007039542,-500.0,0.00060347,120]
[321235704,1712007039551,-500.0,0.00060347,120]
[321235705,1712007039560,-500.0,0.00060347,120]
[321235706,1712007039569,-500.0,0.00060347,120]
[321235707,1712007039577,-500.0,0.00060347,120]
[321235708,1712007039586,-500.0,0.00060347,120]
[321235709,1712007039595,-500.0,0.00060347,120]
[321235710,1712007039604,-162.14,0.00060347,120]
[321235711,1712007039613,-3227.39,0.00060347,120]
[321235712,1712007039622,-500.0,0.00060347,120]
[321235713,1712007039631,-500.0,0.00060347,120]
[321235714,1712007039640,-282.96,0.00060347,120]
[321235715,1712007039649,-495.98,0.00060347,120]
[321235717,1712007039658,-1339.37,0.00060347,120]
[321235719,1712007039667,-500.0,0.00060347,120]
[321235721,1712007039675,-500.0,0.00060347,120]
[321235722,1712007039684,-500.0,0.00060347,120]
[321235723,1712007039693,-500.0,0.00060347,120]
[321235724,1712007039702,-500.0,0.00060347,120]
[321235725,1712007039710,-500.0,0.00060347,120]
[321235726,1712007039719,-500.0,0.00060347,120]
[321235727,1712007039730,-812.22,0.00060347,120]
[321235728,1712007039740,-500.0,0.00060347,120]
[321235729,1712007039749,-500.0,0.00060347,120]
[321235730,1712007039758,-500.0,0.00060347,120]
[321235731,1712007039767,-500.0,0.00060347,120]
[321235732,1712007039776,-5317.05,0.00060347,120]
[321235733,1712007039785,-500.0,0.00060347,120]
[321235734,1712007039794,-500.0,0.00060347,120]
[321235735,1712007039803,-515.11,0.00060347,120]
[321235736,1712007039812,-500.0,0.00060347,120]
[321235737,1712007039821,-500.0,0.00060347,120]
[321235738,1712007039830,-1726.88,0.00060347,120]
[321235739,1712007039839,-623.36,0.00060347,120]
[321235740,1712007039847,-500.0,0.00060347,120]
[321235741,1712007039855,-500.0,0.00060347,120]
[321235742,1712007039864,-500.0,0.00060347,120]
[321235743,1712007039873,-1353.46,0.00060347,120]
[321235744,1712007039881,-1632.83,0.00060347,120]
[321235745,1712007039890,-667.28,0.00060347,120]
[321235746,1712007039898,-500.0,0.00060347,120]
[321235747,1712007039907,-500.0,0.00060347,120]
[321235748,1712007039916,-500.0,0.00060347,120]
[321235749,1712007039925,-593.19,0.00060347,120]
[321235750,1712007039934,-500.0,0.00060347,120]
[321235751,1712007039943,-4315.02,0.00060347,120]
[321235752,1712007039952,-500.0,0.00060347,120]
[321235753,1712007039961,-500.0,0.00060347,120]
[321235754,1712007039970,-500.0,0.00060347,120]
[321235755,1712007039979,-500.0,0.00060347,120]
[321235756,1712007039988,-500.0,0.00060347,120]
[321235757,1712007039997,-2739.33,0.00060347,120]
[321235758,1712007040005,-500.0,0.00060347,120]
[321235759,1712007040014,-500.0,0.00060347,120]
[321235760,1712007040022,-500.0,0.00060347,120]
[321235761,1712007040032,-500.0,0.00060347,120]
[321235762,1712007040041,-500.0,0.00060347,120]
[321235763,1712007040049,-500.0,0.00060347,120]
[321235764,1712007040058,-500.0,0.00060347,120]
[321235765,1712007040067,-500.0,0.00060347,120]
[321235766,1712007040077,-7145.39,0.00060347,120]
[321235767,1712007040086,-500.0,0.00060347,120]
[321235768,1712007040097,-500.0,0.00060347,120]
[321235769,1712007040105,-500.0,0.00060347,120]
[321235770,1712007040114,-500.0,0.00060347,120]
[321235771,1712007040123,-500.0,0.00060347,120]
[321235772,1712007040133,-500.0,0.00060347,120]
[321235773,1712007040141,-896.45,0.00060347,120]
[321235774,1712007040150,-500.0,0.00060347,120]
[321235775,1712007040160,-500.0,0.00060347,120]
[321235776,1712007040170,-526.89,0.00060347,120]
[321235777,1712007040179,-500.0,0.00060347,120]
[321235778,1712007040189,-500.0,0.00060347,120]
[321235779,1712007040197,-780.72,0.00060347,120]
[321235780,1712007040206,-500.0,0.00060347,120]
[321235781,1712007040214,-500.0,0.00060347,120]
[321235782,1712007040223,-1039.33,0.00060347,21]
[321235783,1712007040232,-500.0,0.00060347,120]
[321235784,1712007040241,-648.52,0.00060347,120]
[321235785,1712007040250,-500.0,0.00060347,120]
[321235786,1712007040258,-820.79,0.00060347,120]
[321235787,1712007040267,-500.0,0.00060347,120]
[321235788,1712007040276,-500.0,0.00060347,120]
[321235789,1712007040285,-8275.33,0.00060347,120]
[321235790,1712007040293,-500.0,0.00060347,120]
[321235791,1712007040302,-500.0,0.00060347,120]
[321235792,1712007040311,-500.0,0.00060347,120]
[321235793,1712007040319,-500.0,0.00060347,120]
[321235794,1712007040328,-505.47,0.00060347,120]
[321235795,1712007040337,-678.99,0.00060347,120]
[321235796,1712007040346,-500.0,0.00060347,120]
[321235797,1712007040354,-500.0,0.00060347,120]
[321235798,1712007040363,-500.0,0.00060347,120]
[321235799,1712007040372,-500.0,0.00060347,120]
[321235800,1712007040381,-1439.68,0.00060347,120]
[321235801,1712007040390,-500.0,0.00060347,120]
[321235802,1712007040399,-500.0,0.00060347,120]
[321235803,1712007040408,-500.0,0.00060347,120]
[321235804,1712007040416,-500.0,0.00060347,120]
[321235805,1712007040425,-500.0,0.00060347,120]
[321235806,1712007040434,-770.39,0.00060347,120]
[321235807,1712007040442,-500.0,0.00060347,120]
[321235808,1712007040451,-840.85,0.00060347,120]
[321235809,1712007040460,-500.0,0.00060347,120]
[321235810,1712007040469,-595.69,0.00060347,120]
[321235811,1712007040478,-643.95,0.00060347,120]
[321235812,1712007040487,-500.0,0.00060347,120]
[321235813,1712007040496,-1999.43,0.00060347,120]
[321235814,1712007040504,-500.0,0.00060347,120]
[321235815,1712007040513,-500.0,0.00060347,120]
[321235816,1712007040521,-747.29,0.00060347,120]
[321235817,1712007040530,-500.0,0.00060347,120]
[321235818,1712007040538,-500.0,0.00060347,120]
[321235819,1712007040547,-500.0,0.00060347,120]
[321235820,1712007040556,-500.0,0.00060347,120]
[321235821,1712007040565,-500.0,0.00060347,120]
[321235822,1712007040573,-619.07,0.00060347,120]
[321235823,1712007040582,-582.76,0.00060347,120]
[321235824,1712007040591,-500.0,0.00060347,120]
[321235825,1712007040600,-500.0,0.00060347,120]
[321235826,1712007040609,-500.0,0.00060347,120]
[321235827,1712007040618,-500.0,0.00060347,120]
[321235828,1712007040626,-500.0,0.00060347,120]
[321235829,1712007040636,-500.0,0.00060347,120]
[321235830,1712007040646,-2980.96,0.00060347,120]
[321235831,1712007040655,-566.6,0.00060347,120]
[321235832,1712007040664,-618.02,0.00060347,120]
[321235833,1712007040673,-717.37,0.00060347,120]
[321235834,1712007040682,-500.0,0.00060347,120]
[321235835,1712007040690,-500.0,0.00060347,120]
[321235836,1712007040699,-500.0,0.00060347,120]
[321235837,1712007040708,-500.0,0.00060347,120]
[321235838,1712007040717,-945.0,0.00060347,120]
[321235839,1712007040726,-500.0,0.00060347,120]
[321235840,1712007040735,-1569.99,0.00060347,120]
[321235841,1712007040744,-2089.19,0.00060347,120]
[321235842,1712007040753,-500.0,0.00060347,120]
[321235843,1712007040762,-500.0,0.00060347,120]
[321235844,1712007040770,-500.0,0.00060347,120]
[321235845,1712007040780,-500.0,0.00060347,120]
[321235846,1712007040788,-500.0,0.00060347,120]
[321235847,1712007040797,-707.64,0.00060347,120]
[321235848,1712007040805,-697.77,0.00060347,120]
[321235849,1712007040814,-554.45,0.00060347,120]
[321235850,1712007040823,-500.0,0.00060347,120]
[321235851,1712007040832,-544.08,0.00060347,120]
[321235852,1712007040841,-500.0,0.00060347,120]
[321235853,1712007040849,-616.52,0.00060347,120]
[321235854,1712007040858,-500.0,0.00060347,120]
[321235855,1712007040867,-872.24,0.00060347,120]
[321235856,1712007040875,-500.0,0.00060347,120]
[321235857,1712007040884,-643.07,0.00060347,120]
[321235858,1712007040893,-757.38,0.00060347,120]
[321235859,1712007040902,-500.0,0.00060347,120]
[321235860,1712007040910,-500.0,0.00060347,120]
[321235861,1712007040919,-615.74,0.00060347,120]
[321235862,1712007040928,-500.0,0.00060347,120]
[321235863,1712007040937,-657.88,0.00060347,120]
[321235864,1712007040946,-523.84,0.00060347,120]
[321235865,1712007040955,-500.0,0.00060347,120]
[321235866,1712007040964,-500.0,0.00060347,120]
[321235867,1712007040973,-500.0,0.00060347,120]
[321235868,1712007040982,-500.0,0.00060347,120]
[321235869,1712007040992,-500.0,0.00060347,120]
[321235870,1712007041000,-500.0,0.00060347,120]
[321235871,1712007041009,-500.0,0.00060347,120]
[321235872,1712007041018,-500.0,0.00060347,120]
[321235873,1712007041026,-500.0,0.00060347,120]
[321235874,1712007041035,-500.0,0.00060347,120]
[321235875,1712007041044,-500.0,0.00060347,120]
[321235876,1712007041053,-500.0,0.00060347,120]
[321235877,1712007041061,-500.0,0.00060347,120]
[321235878,1712007041070,-500.0,0.00060347,120]
[321235879,1712007041079,-500.0,0.00060347,120]
[321235880,1712007041089,-1320.38,0.00060347,120]
[321235881,1712007041104,-1355.63,0.00060347,120]
[321235882,1712007041113,-500.0,0.00060347,120]
[321235883,1712007041121,-500.0,0.00060347,120]
[321235884,1712007041131,-500.0,0.00060347,120]
[321235885,1712007041139,-500.0,0.00060347,120]
[321235886,1712007041148,-736.97,0.00060347,120]
[321235887,1712007041156,-1254.6,0.00060347,120]
[321235888,1712007041165,-1981.88,0.00060347,120]
[321235889,1712007041174,-500.0,0.00060347,120]
[321235890,1712007041183,-500.0,0.00060347,120]
[321235891,1712007041192,-500.0,0.00060347,120]
[321235892,1712007041201,-757.56,0.00060347,120]
[321235893,1712007041210,-500.0,0.00060347,120]
[321235894,1712007041218,-500.0,0.00060347,120]
[321235895,1712007041227,-611.37,0.00060347,120]
[321235896,1712007041236,-500.0,0.00060347,120]
[321235897,1712007041245,-500.0,0.00060347,120]
[321235898,1712007041254,-500.0,0.00060347,7]
[321235899,1712007041263,-500.0,0.00060347,120]
[321235900,1712007041272,-609.0,0.00060347,120]
[321235901,1712007041280,-500.0,0.00060347,120]
[321235902,1712007041289,-511.68,0.00060347,120]
[321235903,1712007041298,-500.0,0.00060347,120]
[321235904,1712007041306,-500.0,0.00060347,120]
[321235905,1712007041314,-500.0,0.00060347,120]
[321235906,1712007041323,-500.0,0.00060347,120]
[321235907,1712007041332,-234.64631894,0.00060387,120]
[321235908,1712007041341,-12086.16959528,0.0006039,2]
[321235909,1712007041350,-1470.09898717,0.0006039,2]
[321235910,1712007041665,-23173.2427614,0.0006039,2]
[321235911,1712007042358,-354.90840686,0.000597,2]
[321235912,1712007042367,-500.0,0.00059798,120]
[321235913,1712007042376,-500.0,0.00059798,120]
[321235914,1712007042385,-500.0,0.00059798,120]
[321235915,1712007042394,-500.0,0.00059798,120]
[321235916,1712007042403,-1241.58,0.00059799,120]
[321235917,1712007042413,-500.0,0.00059799,120]
[321235918,1712007042421,-500.0,0.00060072,120]
[321235919,1712007042430,-500.0,0.00060072,120]
[321235920,1712007042439,-500.0,0.00060072,120]
[321235921,1712007042448,-1241.58,0.00060073,120]
[321235922,1712007042457,-500.0,0.00060073,120]
[321235923,1712007042466,-3133.88159314,0.00060186,2]
[321235924,1712007042478,-334.11291966,0.00060186,2]
[321235925,1712007042490,-500.0,0.00060346,120]
[321235926,1712007042499,-500.0,0.00060346,120]
[321235927,1712007042508,-500.0,0.00060346,120]
[321235928,1712007042518,-500.0,0.00060346,120]
[321235929,1712007042527,-1042.90686007,0.00060347,120]
[321235930,1712007042552,-198.67313993,0.00060347,120]
[321235931,1712007042561,-500.0,0.00060347,120]
[321235932,1712007042571,-26630.82349773,0.0006039,2]
[321235933,1712007042580,-152.93655063,0.00060435,120]
[321235934,1712007042589,-279.0,0.00060488,120]
[321235935,1712007042598,-434.0,0.00060488,120]
[321235936,1712007042607,-1269.0,0.00060488,120]
[321235937,1712007042616,-804.0,0.00060488,120]
[321235938,1712007042625,-605.0,0.00060488,120]
[321235939,1712007042634,-150.0,0.00060488,120]
[321235940,1712007042643,-194.0,0.00060488,2]
[321235941,1712007042652,-397.0,0.00060488,120]
[321235942,1712007042660,-2984.0,0.00060488,120]
[321235943,1712007042670,-1458.862,0.00060488,120]
[321235944,1712007042679,-205.747,0.00060488,2]
[321235945,1712007042688,-333.253,0.00060488,120]
[321235946,1712007042697,-245.0,0.00060488,2]
[321235947,1712007042706,-1629.0,0.00060488,120]
[321235948,1712007042715,-2428.0,0.00060488,120]
[321235949,1712007042724,-150.0,0.00060488,120]
[321235950,1712007042733,-264.0,0.00060488,2]
[321235951,1712007042743,-284.734,0.00060488,120]
[321235952,1712007042752,-213.0,0.00060488,2]
[321235953,1712007042762,-1049.0,0.00060488,120]
[321235954,1712007042771,-1384.0,0.00060488,120]
[321235955,1712007042780,-2424.0,0.00060488,120]
[321235956,1712007042789,-5691.0,0.00060488,120]
[321235957,1712007042798,-963.0,0.00060488,120]
[321235958,1712007042807,-459.0,0.00060488,120]
[321235959,1712007042816,-1195.0,0.00060488,2]
[321235960,1712007042825,-150.0,0.00060488,2]
[321235961,1712007042834,-43048.0,0.00060488,120]
[321235962,1712007042843,-2454.0,0.00060488,120]
[321235964,1712007042852,-218.011,0.00060488,2]
[321235966,1712007042861,-1226.0,0.00060488,120]
[321235968,1712007042870,-538.0,0.00060488,120]
[321235970,1712007042879,-1178.0,0.00060488,120]
[321235971,1712007042888,-150.0,0.00060488,120]
[321235972,1712007042897,-48950.0,0.00060578,120]
[321235973,1712007042906,-892.0,0.000606,30]
[321235974,1712007042915,-800.29198,0.00060616,120]
[321235975,1712007042925,-500.0,0.0006062,120]
[321235976,1712007042934,-680.46,0.0006062,120]
[321235977,1712007042943,-599.81,0.0006062,120]
[321235978,1712007042952,-519.19,0.0006062,120]
[321235980,1712007042962,-601.57,0.0006062,120]
[321235981,1712007042970,-513.33,0.0006062,120]
[321235982,1712007042980,-596.47,0.0006062,120]
[321235983,1712007042989,-500.0,0.0006062,120]
[321235984,1712007042998,-3391.36,0.0006062,120]
[321235985,1712007043006,-1369.95,0.0006062,120]
[321235986,1712007043015,-500.0,0.0006062,120]
[321235987,1712007043024,-687.98,0.0006062,120]
[321235988,1712007043033,-1071.64,0.0006062,120]
[321235989,1712007043042,-500.0,0.0006062,120]
[321235990,1712007043051,-1065.74,0.0006062,120]
[321235991,1712007043059,-500.0,0.0006062,120]
[321235992,1712007043068,-500.0,0.0006062,120]
[321235993,1712007043077,-1349.08,0.0006062,120]
[321235994,1712007043086,-500.0,0.0006062,120]
[321235995,1712007043099,-500.0,0.0006062,120]
[321235996,1712007043108,-748.08,0.0006062,120]
[321235997,1712007043118,-500.0,0.0006062,120]
[321235998,1712007043127,-711.74,0.0006062,120]
[321235999,1712007043137,-500.0,0.0006062,120]
[321236000,1712007043145,-500.0,0.0006062,120]
[321236001,1712007043156,-500.0,0.0006062,120]
[321236002,1712007043166,-500.0,0.0006062,120]
[321236003,1712007043175,-500.0,0.0006062,120]
[321236004,1712007043183,-500.0,0.0006062,120]
[321236005,1712007043192,-500.0,0.0006062,120]
[321236006,1712007043202,-500.0,0.0006062,120]
[321236007,1712007043211,-517.59,0.0006062,120]
[321236008,1712007043220,-500.0,0.0006062,120]
[321236009,1712007043229,-571.02,0.0006062,120]
[321236010,1712007043239,-500.0,0.0006062,120]
[321236011,1712007043247,-500.0,0.0006062,120]
[321236012,1712007043257,-500.0,0.0006062,120]
[321236013,1712007043267,-443.45,0.00060621,120]
[321236014,1712007043275,-500.0,0.00060621,120]
[321236015,1712007043284,-500.0,0.00060621,120]
[321236016,1712007043293,-572.16,0.00060621,120]
[321236017,1712007043302,-500.0,0.00060621,120]
[321236018,1712007043310,-500.0,0.00060621,120]
[321236019,1712007043319,-500.0,0.00060621,120]
[321236020,1712007043328,-500.0,0.00060621,120]
[321236021,1712007043337,-500.0,0.00060621,120]
[321236022,1712007043346,-467.85,0.00060621,120]
[321236023,1712007043355,-500.0,0.00060621,120]
[321236024,1712007043363,-500.0,0.00060621,120]
[321236025,1712007043372,-500.0,0.00060621,120]
[321236026,1712007043381,-373.73,0.00060621,120]
[321236027,1712007043390,-500.0,0.00060621,120]
[321236028,1712007043399,-568.04,0.00060621,120]
[321236029,1712007043408,-500.0,0.00060621,120]
[321236030,1712007043417,-212.73,0.00060621,120]
[321236031,1712007043426,-500.0,0.00060621,120]
[321236032,1712007043434,-500.0,0.00060621,120]
[321236033,1712007043444,-361.36,0.00060621,120]
[321236034,1712007043453,-3227.39,0.00060621,120]
[321236035,1712007043462,-628.74,0.00060621,120]
[321236036,1712007043471,-500.0,0.00060621,120]
[321236037,1712007043480,-1339.37,0.00060621,120]
[321236039,1712007043489,-500.0,0.00060621,120]
[321236041,1712007043498,-500.0,0.00060621,120]
[321236043,1712007043506,-503.76,0.00060621,120]
[321236046,1712007043515,-500.0,0.00060621,120]
[321236049,1712007043524,-500.0,0.00060621,120]
[321236052,1712007043533,-500.0,0.00060621,120]
[321236054,1712007043541,-500.0,0.00060621,120]
[321236056,1712007043550,-812.22,0.00060621,120]
[321236058,1712007043560,-500.0,0.00060621,120]
[321236060,1712007043568,-500.0,0.00060621,120]
[321236062,1712007043577,-500.0,0.00060621,120]
[321236064,1712007043585,-500.0,0.00060621,120]
[321236066,1712007043594,-5317.05,0.00060621,120]
[321236068,1712007043603,-500.0,0.00060621,120]
[321236070,1712007043612,-500.0,0.00060621,120]
[321236072,1712007043621,-515.11,0.00060621,120]
[321236074,1712007043630,-500.0,0.00060621,120]
[321236076,1712007043638,-500.0,0.00060621,120]
[321236078,1712007043647,-500.0,0.00060621,120]
[321236080,1712007043656,-500.0,0.00060621,120]
[321236082,1712007043665,-500.0,0.00060621,120]
[321236084,1712007043673,-1632.83,0.00060621,120]
[321236086,1712007043682,-667.28,0.00060621,120]
[321236088,1712007043691,-500.0,0.00060621,120]
[321236090,1712007043701,-500.0,0.00060621,120]
[321236092,1712007043710,-500.0,0.00060621,120]
[321236093,1712007043719,-593.19,0.00060621,120]
[321236094,1712007043727,-500.0,0.00060621,120]
[321236095,1712007043737,-4315.02,0.00060621,120]
[321236096,1712007043746,-500.0,0.00060621,120]
[321236097,1712007043754,-500.0,0.00060621,120]
[321236098,1712007043763,-500.0,0.00060621,120]
[321236099,1712007043772,-500.0,0.00060621,120]
[321236100,1712007043781,-500.0,0.00060621,120]
[321236101,1712007043790,-2739.33,0.00060621,120]
[321236102,1712007043799,-500.0,0.00060621,120]
[321236103,1712007043808,-500.0,0.00060621,120]
[321236104,1712007043817,-500.0,0.00060621,120]
[321236105,1712007043825,-500.0,0.00060621,120]
[321236106,1712007043834,-500.0,0.00060621,120]
[321236107,1712007043842,-500.0,0.00060621,120]
[321236108,1712007043851,-500.0,0.00060621,120]
[321236109,1712007043860,-500.0,0.00060621,120]
[321236110,1712007043869,-7145.39,0.00060621,120]
[321236111,1712007043878,-500.0,0.00060621,120]
[321236112,1712007043886,-500.0,0.00060621,120]
[321236113,1712007043895,-500.0,0.00060621,120]
[321236114,1712007043903,-516.38,0.00060621,120]
[321236115,1712007043912,-500.0,0.00060621,120]
[321236116,1712007043921,-896.45,0.00060621,120]
[321236117,1712007043929,-500.0,0.00060621,120]
[321236118,1712007043938,-500.0,0.00060621,120]
[321236119,1712007043946,-500.0,0.00060621,120]
[321236120,1712007043955,-526.89,0.00060621,120]
[321236121,1712007043964,-500.0,0.00060621,120]
[321236122,1712007043973,-500.0,0.00060621,120]
[321236123,1712007043982,-780.72,0.00060621,120]
[321236124,1712007043991,-500.0,0.00060621,120]
[321236125,1712007043999,-500.0,0.00060621,120]
[321236126,1712007044008,-1039.33,0.00060621,21]
[321236127,1712007044017,-500.0,0.00060621,120]
[321236128,1712007044026,-648.52,0.00060621,120]
[321236129,1712007044035,-500.0,0.00060621,120]
[321236130,1712007044156,-820.79,0.00060621,120]
[321236131,1712007044168,-500.0,0.00060621,120]
[321236132,1712007044177,-500.0,0.00060621,120]
[321236133,1712007044186,-8275.33,0.00060621,120]
[321236134,1712007044195,-500.0,0.00060621,120]
[321236135,1712007044204,-500.0,0.00060621,120]
[321236136,1712007044213,-500.0,0.00060621,120]
[321236137,1712007044222,-500.0,0.00060621,120]
[321236138,1712007044231,-505.47,0.00060621,120]
[321236139,1712007044240,-678.99,0.00060621,120]
[321236140,1712007044248,-500.0,0.00060621,120]
[321236141,1712007044257,-500.0,0.00060621,120]
[321236142,1712007044267,-500.0,0.00060621,120]